[Event "*** SCC Grand Prix: Titled Tuesday Blitz"]
[Site "Chess.com"]
[Date "2020.10.06"]
[Round "3"]
[White "hurricane7791"]
[Black "WPWPWP-2015"]
[Result "1-0"]
[WhiteElo "2706"]
[BlackElo "2445"]
[TimeControl "180+1"]
[EndTime "10:27:17 PDT"]
[Termination "hurricane7791 won on time"]

1. d4 {[%clk 0:03:00.9]} 1... Nf6 {[%clk 0:02:59.2]} 2. c4 {[%clk 0:02:59.9]}
2... e6 {[%clk 0:02:59]} 3. Nc3 {[%clk 0:02:59]} 3... c5 {[%clk 0:02:56.7]} 4.
d5 {[%clk 0:02:57.7]} 4... exd5 {[%clk 0:02:56.4]} 5. cxd5 {[%clk 0:02:58.6]}
5... d6 {[%clk 0:02:56.2]} 6. e4 {[%clk 0:02:57.4]} 6... g6 {[%clk 0:02:55.9]}
7. f4 {[%clk 0:02:57.7]} 7... Nbd7 {[%clk 0:02:54.9]} 8. Nf3 {[%clk 0:02:55.3]}
8... a6 {[%clk 0:02:53.5]} 9. e5 {[%clk 0:02:54.4]} 9... Ng4 {[%clk 0:02:40]}
10. h3 {[%clk 0:02:51.7]} 10... Nh6 {[%clk 0:02:34.7]} 11. Bd3 {[%clk
0:02:08.3]} 11... Bg7 {[%clk 0:02:13.5]} 12. O-O {[%clk 0:02:05]} 12... O-O
{[%clk 0:02:11.9]} 13. Re1 {[%clk 0:02:01.9]} 13... Re8 {[%clk 0:02:01.5]} 14.
e6 {[%clk 0:01:51.3]} 14... Nf8 {[%clk 0:01:52.2]} 15. f5 {[%clk 0:01:23.9]}
15... Nxf5 {[%clk 0:01:44.4]} 16. Bxf5 {[%clk 0:01:22.1]} 16... gxf5 {[%clk
0:01:44.4]} 17. Bg5 {[%clk 0:01:22.4]} 17... Qc7 {[%clk 0:01:03.2]} 18. exf7+
{[%clk 0:00:58.6]} 18... Qxf7 {[%clk 0:01:01.3]} 19. Rxe8 {[%clk 0:00:56.4]}
19... Qxe8 {[%clk 0:01:02.2]} 20. Qd2 {[%clk 0:00:57.1]} 20... Ng6 {[%clk
0:00:54.1]} 21. Re1 {[%clk 0:00:54.4]} 21... Qf7 {[%clk 0:00:46.9]} 22. Bf4
{[%clk 0:00:51.4]} 22... Nxf4 {[%clk 0:00:41.3]} 23. Qxf4 {[%clk 0:00:52.3]}
23... Qg6 {[%clk 0:00:19.5]} 24. Re7 {[%clk 0:00:45.1]} 24... Bf8 {[%clk
0:00:19.5]} 25. Rc7 {[%clk 0:00:41.4]} 25... b5 {[%clk 0:00:18.2]} 26. a4 {[%clk
0:00:32.5]} 26... Rb8 {[%clk 0:00:16.7]} 27. axb5 {[%clk 0:00:30.6]} 27... axb5
{[%clk 0:00:17.6]} 28. Ne2 {[%clk 0:00:30.8]} 28... b4 {[%clk 0:00:15.8]} 29.
Qh4 {[%clk 0:00:27.1]} 29... Ba6 {[%clk 0:00:14.2]} 30. Nf4 {[%clk 0:00:25.7]}
30... Qh6 {[%clk 0:00:09.1]} 31. Qg3+ {[%clk 0:00:24.6]} 31... Kh8 {[%clk
0:00:08.5]} 32. Ng5 {[%clk 0:00:24.4]} 32... Qf6 {[%clk 0:00:05.2]} 33. Nf7+
{[%clk 0:00:24.1]} 33... Qxf7 {[%clk 0:00:04.3]} 34. Rxf7 {[%clk 0:00:25]} 34...
c4 {[%clk 0:00:03.5]} 35. Ne6 {[%clk 0:00:23.6]} 35... c3 {[%clk 0:00:01.9]} 36.
Nxf8 {[%clk 0:00:21.9]} 1-0

[Event "*** SCC Grand Prix: Titled Tuesday Blitz"]
[Site "Chess.com"]
[Date "2020.10.06"]
[Round "3"]
[White "canary2016"]
[Black "kidagent"]
[Result "0-1"]
[WhiteElo "1910"]
[BlackElo "2289"]
[TimeControl "180+1"]
[EndTime "10:27:17 PDT"]
[Termination "kidagent won by checkmate"]

1. d4 {[%clk 0:03:00.9]} 1... d5 {[%clk 0:02:59.8]} 2. c4 {[%clk 0:02:59.4]}
2... c6 {[%clk 0:03:00.1]} 3. Nf3 {[%clk 0:02:58.2]} 3... Nf6 {[%clk 0:02:59.9]}
4. g3 {[%clk 0:02:57.3]} 4... g6 {[%clk 0:02:59.2]} 5. Bg2 {[%clk 0:02:56.3]}
5... Bg7 {[%clk 0:02:59.5]} 6. O-O {[%clk 0:02:56.4]} 6... O-O {[%clk
0:03:00.1]} 7. Nbd2 {[%clk 0:02:55.8]} 7... Na6 {[%clk 0:02:56.7]} 8. b3 {[%clk
0:02:54.3]} 8... Re8 {[%clk 0:02:54.9]} 9. Bb2 {[%clk 0:02:53.1]} 9... Ne4
{[%clk 0:02:53.2]} 10. Qc2 {[%clk 0:02:43.1]} 10... Bf5 {[%clk 0:02:52.3]} 11.
Nh4 {[%clk 0:02:42.2]} 11... Nxg3 {[%clk 0:02:50.6]} 12. Nxf5 {[%clk 0:02:37.8]}
12... Nxf5 {[%clk 0:02:51.5]} 13. e3 {[%clk 0:02:29.2]} 13... Nc7 {[%clk
0:02:48.1]} 14. Rac1 {[%clk 0:02:25.8]} 14... dxc4 {[%clk 0:02:45.4]} 15. Nxc4
{[%clk 0:02:23]} 15... Nh4 {[%clk 0:02:44]} 16. Be4 {[%clk 0:02:06.9]} 16... Qd7
{[%clk 0:02:34.7]} 17. Kh1 {[%clk 0:02:04]} 17... Nd5 {[%clk 0:02:27.7]} 18. Rg1
{[%clk 0:01:55.4]} 18... Qh3 {[%clk 0:02:25.6]} 19. Bg2 {[%clk 0:01:52.8]} 19...
Nxg2 {[%clk 0:02:23.3]} 20. Rxg2 {[%clk 0:01:52.7]} 20... Rad8 {[%clk
0:02:20.1]} 21. Rcg1 {[%clk 0:01:49.5]} 21... Rc8 {[%clk 0:01:48.6]} 22. Rg3
{[%clk 0:01:42.1]} 22... Qd7 {[%clk 0:01:45.2]} 23. Qe2 {[%clk 0:01:34.7]} 23...
b5 {[%clk 0:01:41.5]} 24. Nd2 {[%clk 0:01:29.3]} 24... c5 {[%clk 0:01:40]} 25.
Nf3 {[%clk 0:01:25.3]} 25... cxd4 {[%clk 0:01:39.3]} 26. Bxd4 {[%clk 0:01:18.1]}
26... e5 {[%clk 0:01:37.4]} 27. Bb2 {[%clk 0:01:15]} 27... e4 {[%clk 0:01:34.9]}
28. Nd4 {[%clk 0:01:10.3]} 28... b4 {[%clk 0:01:30.6]} 29. Ba1 {[%clk
0:00:48.7]} 29... Nc3 {[%clk 0:01:29.9]} 30. Bxc3 {[%clk 0:00:47.7]} 30... Rxc3
{[%clk 0:01:24.7]} 31. Nb5 {[%clk 0:00:47.5]} 31... Rc5 {[%clk 0:01:22.1]} 32.
Nd4 {[%clk 0:00:42.4]} 32... Bxd4 {[%clk 0:01:17.4]} 33. exd4 {[%clk 0:00:40.7]}
33... Qxd4 {[%clk 0:01:16.5]} 34. Rh3 {[%clk 0:00:36.3]} 34... Rec8 {[%clk
0:01:09.5]} 35. Re3 {[%clk 0:00:21.2]} 35... f5 {[%clk 0:01:06.3]} 36. Rd1
{[%clk 0:00:17.6]} 36... Qg7 {[%clk 0:01:01.2]} 37. Qa6 {[%clk 0:00:12.9]} 37...
Rc2 {[%clk 0:00:57]} 38. Qe6+ {[%clk 0:00:12.1]} 38... Qf7 {[%clk 0:00:54.6]}
39. Qa6 {[%clk 0:00:08.1]} 39... Re8 {[%clk 0:00:44.4]} 40. Kg2 {[%clk
0:00:04.8]} 40... f4 {[%clk 0:00:42.3]} 41. Ree1 {[%clk 0:00:04.2]} 41... e3
{[%clk 0:00:41.1]} 42. Kg1 {[%clk 0:00:01.3]} 42... exf2+ {[%clk 0:00:40.6]} 43.
Kh1 {[%clk 0:00:01.7]} 43... fxe1=Q+ {[%clk 0:00:40]} 44. Rxe1 {[%clk 0:00:02]}
44... Rxe1+ {[%clk 0:00:38.1]} 45. Qf1 {[%clk 0:00:02.4]} 45... Rxf1# {[%clk
0:00:38.2]} 0-1

[Event "*** SCC Grand Prix: Titled Tuesday Blitz"]
[Site "Chess.com"]
[Date "2020.10.06"]
[Round "3"]
[White "night_player"]
[Black "JoliyRoger"]
[Result "0-1"]
[WhiteElo "2280"]
[BlackElo "2461"]
[TimeControl "180+1"]
[EndTime "10:27:18 PDT"]
[Termination "JoliyRoger won by resignation"]

1. e4 {[%clk 0:03:00.9]} 1... c6 {[%clk 0:02:59.5]} 2. d4 {[%clk 0:03:00.7]}
2... d5 {[%clk 0:02:58.5]} 3. e5 {[%clk 0:03:01.1]} 3... Bf5 {[%clk 0:02:57.8]}
4. h4 {[%clk 0:02:58.7]} 4... Qb6 {[%clk 0:02:58.1]} 5. g4 {[%clk 0:02:51.7]}
5... Bd7 {[%clk 0:02:58.2]} 6. c4 {[%clk 0:02:45.3]} 6... dxc4 {[%clk
0:02:50.4]} 7. Bxc4 {[%clk 0:02:44.4]} 7... e6 {[%clk 0:02:21]} 8. Nc3 {[%clk
0:02:40.8]} 8... Ne7 {[%clk 0:02:18]} 9. h5 {[%clk 0:02:37.6]} 9... Nd5 {[%clk
0:02:17.9]} 10. Nge2 {[%clk 0:02:31.3]} 10... Be7 {[%clk 0:02:14.6]} 11. Ne4
{[%clk 0:02:24.5]} 11... Qb4+ {[%clk 0:02:03.9]} 12. Nd2 {[%clk 0:02:21.6]}
12... c5 {[%clk 0:02:01.3]} 13. O-O {[%clk 0:01:48.8]} 13... cxd4 {[%clk
0:01:56]} 14. Nxd4 {[%clk 0:01:45.9]} 14... Nc6 {[%clk 0:01:56.4]} 15. Bxd5
{[%clk 0:01:18.2]} 15... Qxd4 {[%clk 0:01:51]} 16. Bg2 {[%clk 0:01:04.4]} 16...
Nxe5 {[%clk 0:01:45.7]} 17. Nf3 {[%clk 0:00:23.9]} 17... Qxd1 {[%clk 0:01:31.1]}
18. Rxd1 {[%clk 0:00:24.8]} 18... Nxg4 {[%clk 0:01:23]} 19. Bh3 {[%clk
0:00:14.5]} 19... Nf6 {[%clk 0:01:17.7]} 20. Ne5 {[%clk 0:00:13.9]} 20... O-O-O
{[%clk 0:01:17.1]} 21. Be3 {[%clk 0:00:12.6]} 21... Be8 {[%clk 0:01:04]} 22.
Rac1+ {[%clk 0:00:12.3]} 22... Kb8 {[%clk 0:01:04.1]} 23. Rxd8+ {[%clk
0:00:10.7]} 23... Bxd8 {[%clk 0:01:04.2]} 24. Nc4 {[%clk 0:00:09.7]} 24... Nd5
{[%clk 0:01:02.4]} 25. Bd4 {[%clk 0:00:09.4]} 25... Bc7 {[%clk 0:00:50.7]} 26.
Kf1 {[%clk 0:00:07.7]} 26... Bb5 {[%clk 0:00:40.4]} 27. Bxg7 {[%clk 0:00:07.4]}
27... Rc8 {[%clk 0:00:40.9]} 28. b3 {[%clk 0:00:07.3]} 28... Nf4 {[%clk
0:00:37.2]} 29. Bg4 {[%clk 0:00:06.7]} 29... f5 {[%clk 0:00:32.4]} 30. Bf3
{[%clk 0:00:06.2]} 30... Nd3 {[%clk 0:00:22.6]} 31. Rc2 {[%clk 0:00:05.8]} 31...
Nb4 {[%clk 0:00:22.4]} 32. Rb2 {[%clk 0:00:04.8]} 32... Bf4 {[%clk 0:00:17.5]}
33. Be5+ {[%clk 0:00:04.6]} 33... Bxe5 {[%clk 0:00:15.9]} 0-1

[Event "*** SCC Grand Prix: Titled Tuesday Blitz"]
[Site "Chess.com"]
[Date "2020.10.06"]
[Round "3"]
[White "Oleksandr_Bortnyk"]
[Black "GmSergioBarrientos"]
[Result "1-0"]
[WhiteElo "2901"]
[BlackElo "2690"]
[TimeControl "180+1"]
[EndTime "10:27:19 PDT"]
[Termination "Oleksandr_Bortnyk won by resignation"]

1. e4 {[%clk 0:03:00.4]} 1... c5 {[%clk 0:02:59.6]} 2. c3 {[%clk 0:03:00.3]}
2... d5 {[%clk 0:02:58.8]} 3. exd5 {[%clk 0:03:01.2]} 3... Qxd5 {[%clk
0:02:59.2]} 4. d4 {[%clk 0:03:02.1]} 4... Nf6 {[%clk 0:02:59.4]} 5. Nf3 {[%clk
0:03:02.8]} 5... Bg4 {[%clk 0:02:58.9]} 6. dxc5 {[%clk 0:03:03.1]} 6... Qxc5
{[%clk 0:02:57.3]} 7. Be3 {[%clk 0:03:03.3]} 7... Qc8 {[%clk 0:02:50]} 8. h3
{[%clk 0:03:03.1]} 8... Bf5 {[%clk 0:02:43.3]} 9. Na3 {[%clk 0:03:01.5]} 9...
Nbd7 {[%clk 0:02:34]} 10. Nc4 {[%clk 0:02:32.7]} 10... Qc7 {[%clk 0:02:28.7]}
11. Qa4 {[%clk 0:02:22.3]} 11... a6 {[%clk 0:02:14.2]} 12. Nb6 {[%clk
0:01:34.3]} 12... Rd8 {[%clk 0:02:13.1]} 13. Be2 {[%clk 0:01:34.1]} 13... Be4
{[%clk 0:02:09.7]} 14. O-O {[%clk 0:01:32.5]} 14... Bc6 {[%clk 0:02:09.2]} 15.
Qa5 {[%clk 0:01:32.5]} 15... Nd5 {[%clk 0:02:01]} 16. Nc4 {[%clk 0:01:16.4]}
16... Qxa5 {[%clk 0:01:55.3]} 17. Nxa5 {[%clk 0:01:17.3]} 17... Nxe3 {[%clk
0:01:54.6]} 18. Nxc6 {[%clk 0:01:16.3]} 18... Nxf1 {[%clk 0:01:51]} 19. Nxd8
{[%clk 0:01:16.6]} 19... Kxd8 {[%clk 0:01:50]} 20. Kxf1 {[%clk 0:01:17.2]} 20...
e6 {[%clk 0:01:37.1]} 21. Rd1 {[%clk 0:01:16.6]} 21... Ke7 {[%clk 0:01:36.6]}
22. Nd4 {[%clk 0:01:10.7]} 22... g6 {[%clk 0:01:32]} 23. Bf3 {[%clk 0:01:11.2]}
23... Nc5 {[%clk 0:01:23.5]} 24. b4 {[%clk 0:01:11]} 24... Na4 {[%clk
0:01:23.6]} 25. Bxb7 {[%clk 0:01:08.7]} 25... Nxc3 {[%clk 0:01:23.8]} 26. Nc6+
{[%clk 0:01:09]} 26... Kf6 {[%clk 0:01:22]} 27. Rd8 {[%clk 0:01:05.5]} 27...
Nxa2 {[%clk 0:01:15.4]} 28. Bxa6 {[%clk 0:01:05.6]} 28... Kg7 {[%clk 0:01:12.5]}
29. Rd4 {[%clk 0:00:48.8]} 29... e5 {[%clk 0:01:07.2]} 30. Rc4 {[%clk
0:00:49.3]} 30... Bd6 {[%clk 0:00:48.7]} 31. b5 {[%clk 0:00:49.4]} 31... Ra8
{[%clk 0:00:47.7]} 32. Ke2 {[%clk 0:00:44.2]} 32... e4 {[%clk 0:00:46.9]} 33.
Kd2 {[%clk 0:00:41.5]} 33... f5 {[%clk 0:00:44.9]} 34. Kc2 {[%clk 0:00:42.1]}
34... Bf4 {[%clk 0:00:45]} 35. g3 {[%clk 0:00:32.5]} 35... e3 {[%clk 0:00:45.4]}
36. Rxf4 {[%clk 0:00:12.6]} 36... e2 {[%clk 0:00:44.6]} 37. Kd2 {[%clk
0:00:13.1]} 37... Re8 {[%clk 0:00:42.8]} 38. Ke1 {[%clk 0:00:13.6]} 38... Nc1
{[%clk 0:00:43]} 39. Rd4 {[%clk 0:00:13.4]} 39... Nb3 {[%clk 0:00:42.6]} 40.
Rd7+ {[%clk 0:00:12.2]} 40... Kf6 {[%clk 0:00:42.4]} 41. b6 {[%clk 0:00:11.7]}
41... f4 {[%clk 0:00:39.1]} 42. gxf4 {[%clk 0:00:11.6]} 42... Nc5 {[%clk
0:00:38.9]} 43. Rd6+ {[%clk 0:00:10.5]} 43... Kf5 {[%clk 0:00:39.3]} 44. Bxe2
{[%clk 0:00:10.4]} 44... Kxf4 {[%clk 0:00:39.5]} 45. Rd5 {[%clk 0:00:09.2]}
45... Ne4 {[%clk 0:00:36.3]} 46. Rd8 {[%clk 0:00:09.3]} 46... Re6 {[%clk
0:00:35.5]} 47. b7 {[%clk 0:00:09.5]} 47... Rxc6 {[%clk 0:00:35.8]} 48. b8=Q+
{[%clk 0:00:10.4]} 48... Kg5 {[%clk 0:00:36.3]} 49. Qe5+ {[%clk 0:00:10.4]} 1-0

[Event "*** SCC Grand Prix: Titled Tuesday Blitz"]
[Site "Chess.com"]
[Date "2020.10.06"]
[Round "3"]
[White "Juanovic"]
[Black "vanyakuba"]
[Result "0-1"]
[WhiteElo "2128"]
[BlackElo "2491"]
[TimeControl "180+1"]
[EndTime "10:27:22 PDT"]
[Termination "vanyakuba won by resignation"]

1. e4 {[%clk 0:03:00.9]} 1... d5 {[%clk 0:02:58.3]} 2. exd5 {[%clk 0:03:00.3]}
2... Qxd5 {[%clk 0:02:59.2]} 3. Nc3 {[%clk 0:02:59.8]} 3... Qa5 {[%clk
0:02:59.3]} 4. d4 {[%clk 0:02:59.4]} 4... Nf6 {[%clk 0:02:59.2]} 5. Bc4 {[%clk
0:02:58.8]} 5... Bg4 {[%clk 0:02:53.9]} 6. Nf3 {[%clk 0:02:58.7]} 6... Nc6
{[%clk 0:02:53.5]} 7. Bb5 {[%clk 0:02:57.6]} 7... O-O-O {[%clk 0:02:53]} 8. Bxc6
{[%clk 0:02:57.7]} 8... bxc6 {[%clk 0:02:53.9]} 9. h3 {[%clk 0:02:35.9]} 9...
Bh5 {[%clk 0:02:39.5]} 10. Qd3 {[%clk 0:02:25.4]} 10... e6 {[%clk 0:02:15.5]}
11. Bd2 {[%clk 0:02:18]} 11... c5 {[%clk 0:01:34.7]} 12. Nd5 {[%clk 0:01:27.9]}
12... Qa4 {[%clk 0:01:32.9]} 13. Nxf6 {[%clk 0:01:25.6]} 13... gxf6 {[%clk
0:01:33.8]} 14. b3 {[%clk 0:01:15.4]} 14... Qc6 {[%clk 0:01:30.1]} 15. O-O-O
{[%clk 0:00:50.1]} 15... Bxf3 {[%clk 0:01:20.3]} 16. gxf3 {[%clk 0:00:51]} 16...
cxd4 {[%clk 0:01:02.8]} 17. Kb1 {[%clk 0:00:37.2]} 17... Be7 {[%clk 0:00:41.7]}
18. Rhg1 {[%clk 0:00:36.2]} 18... f5 {[%clk 0:00:38.4]} 19. Rg7 {[%clk
0:00:24.3]} 19... Rdf8 {[%clk 0:00:23.4]} 20. Rdg1 {[%clk 0:00:13.6]} 20... Bf6
{[%clk 0:00:20.9]} 21. R7g3 {[%clk 0:00:11.4]} 21... Kb7 {[%clk 0:00:20.6]} 22.
Bb4 {[%clk 0:00:08.4]} 22... Rd8 {[%clk 0:00:20.5]} 23. f4 {[%clk 0:00:06.7]}
23... a6 {[%clk 0:00:20]} 24. a4 {[%clk 0:00:06.7]} 24... Rd7 {[%clk 0:00:18.9]}
25. Bd2 {[%clk 0:00:06.8]} 25... h5 {[%clk 0:00:16.3]} 26. Qe2 {[%clk
0:00:05.7]} 26... h4 {[%clk 0:00:16]} 27. Rd3 {[%clk 0:00:06.1]} 27... Rhd8
{[%clk 0:00:15.7]} 28. Rd1 {[%clk 0:00:05.4]} 28... Rd5 {[%clk 0:00:15.8]} 29.
Kb2 {[%clk 0:00:05.3]} 29... Qb6 {[%clk 0:00:14.8]} 30. a5 {[%clk 0:00:04.8]}
30... Qb5 {[%clk 0:00:14.5]} 31. Qf3 {[%clk 0:00:05]} 31... Qc6 {[%clk
0:00:14.3]} 32. Be1 {[%clk 0:00:04.5]} 32... Rc5 {[%clk 0:00:14]} 33. R1d2
{[%clk 0:00:04.3]} 33... Qxf3 {[%clk 0:00:13.7]} 34. Rxf3 {[%clk 0:00:04.3]}
34... d3+ {[%clk 0:00:14.4]} 35. c3 {[%clk 0:00:03.9]} 35... Bxc3+ {[%clk
0:00:13.9]} 0-1

[Event "*** SCC Grand Prix: Titled Tuesday Blitz"]
[Site "Chess.com"]
[Date "2020.10.06"]
[Round "3"]
[White "Bigfish1995"]
[Black "Pultis"]
[Result "0-1"]
[WhiteElo "3101"]
[BlackElo "2754"]
[TimeControl "180+1"]
[EndTime "10:27:23 PDT"]
[Termination "Pultis won on time"]

1. d4 {[%clk 0:03:00.9]} 1... Nf6 {[%clk 0:02:59.6]} 2. Nf3 {[%clk 0:02:59.8]}
2... g6 {[%clk 0:02:59.3]} 3. Nbd2 {[%clk 0:02:58.8]} 3... d5 {[%clk 0:02:58.6]}
4. e3 {[%clk 0:02:57.7]} 4... a5 {[%clk 0:02:59.1]} 5. c4 {[%clk 0:02:53.3]}
5... Bg7 {[%clk 0:02:51.6]} 6. b3 {[%clk 0:02:53.4]} 6... O-O {[%clk 0:02:46.6]}
7. Bb2 {[%clk 0:02:53.5]} 7... a4 {[%clk 0:02:45.6]} 8. Be2 {[%clk 0:02:48.4]}
8... c6 {[%clk 0:02:41.9]} 9. O-O {[%clk 0:02:46.9]} 9... Bf5 {[%clk 0:02:42.4]}
10. bxa4 {[%clk 0:02:41.9]} 10... Qa5 {[%clk 0:02:40.7]} 11. Qb3 {[%clk
0:02:37.4]} 11... Nbd7 {[%clk 0:02:41]} 12. cxd5 {[%clk 0:02:33.6]} 12... Nxd5
{[%clk 0:02:28.9]} 13. e4 {[%clk 0:01:59.6]} 13... Nf4 {[%clk 0:02:28.4]} 14.
Bc4 {[%clk 0:01:59.4]} 14... Bg4 {[%clk 0:01:56.7]} 15. g3 {[%clk 0:01:37.2]}
15... Ne6 {[%clk 0:01:47.5]} 16. Kg2 {[%clk 0:01:27.7]} 16... Qh5 {[%clk
0:01:42.6]} 17. h4 {[%clk 0:01:17.7]} 17... Rfd8 {[%clk 0:01:25.6]} 18. Bc3
{[%clk 0:01:11.6]} 18... Bh6 {[%clk 0:01:08.9]} 19. Rh1 {[%clk 0:00:52.5]} 19...
Nf6 {[%clk 0:01:04.6]} 20. Qxb7 {[%clk 0:00:34.5]} 20... Nxe4 {[%clk 0:00:55.3]}
21. Ng5 {[%clk 0:00:15.2]} 21... Nxc3 {[%clk 0:00:43.8]} 22. f3 {[%clk 0:00:15]}
22... Rxd4 {[%clk 0:00:40.9]} 23. Qxa8+ {[%clk 0:00:12.5]} 23... Rd8 {[%clk
0:00:41.2]} 24. Qxd8+ {[%clk 0:00:11.9]} 24... Nxd8 {[%clk 0:00:40.4]} 25. fxg4
{[%clk 0:00:11.3]} 25... Qxg4 {[%clk 0:00:40.6]} 26. Rhf1 {[%clk 0:00:08.5]}
26... Bxg5 {[%clk 0:00:34.4]} 27. hxg5 {[%clk 0:00:08.8]} 27... Qd4 {[%clk
0:00:34.8]} 28. Rf2 {[%clk 0:00:05.8]} 28... Ne4 {[%clk 0:00:32.9]} 29. Re2
{[%clk 0:00:05.2]} 29... Nxd2 {[%clk 0:00:29.5]} 30. Rd1 {[%clk 0:00:05]} 30...
Qxc4 {[%clk 0:00:28.1]} 31. Rdxd2 {[%clk 0:00:05.4]} 31... Ne6 {[%clk
0:00:28.4]} 32. a5 {[%clk 0:00:06]} 32... Qa4 {[%clk 0:00:24.1]} 33. Re5 {[%clk
0:00:05.7]} 33... c5 {[%clk 0:00:21.6]} 34. Rf2 {[%clk 0:00:04.7]} 34... Qxa5
{[%clk 0:00:21.1]} 35. Kh2 {[%clk 0:00:04.2]} 35... Qa8 {[%clk 0:00:21.6]} 36.
Rd2 {[%clk 0:00:03.4]} 36... Nd4 {[%clk 0:00:21]} 0-1

[Event "*** SCC Grand Prix: Titled Tuesday Blitz"]
[Site "Chess.com"]
[Date "2020.10.06"]
[Round "3"]
[White "Sanyura"]
[Black "CM_rui"]
[Result "0-1"]
[WhiteElo "2537"]
[BlackElo "2383"]
[TimeControl "180+1"]
[EndTime "10:27:24 PDT"]
[Termination "CM_rui won on time"]

1. e4 {[%clk 0:02:40]} 1... e5 {[%clk 0:02:59.8]} 2. Nf3 {[%clk 0:02:38.9]} 2...
Nc6 {[%clk 0:03:00.1]} 3. Bb5 {[%clk 0:02:39.3]} 3... a6 {[%clk 0:03:00]} 4. Ba4
{[%clk 0:02:39]} 4... Nf6 {[%clk 0:03:00.5]} 5. O-O {[%clk 0:02:37.3]} 5... Be7
{[%clk 0:03:00.3]} 6. Re1 {[%clk 0:02:36]} 6... b5 {[%clk 0:03:00.5]} 7. Bb3
{[%clk 0:02:33.9]} 7... O-O {[%clk 0:03:01.1]} 8. h3 {[%clk 0:02:29]} 8... d6
{[%clk 0:02:58.8]} 9. c3 {[%clk 0:02:25]} 9... Na5 {[%clk 0:02:56.2]} 10. Bc2
{[%clk 0:02:24.8]} 10... c5 {[%clk 0:02:55.7]} 11. d4 {[%clk 0:02:25.4]} 11...
cxd4 {[%clk 0:02:52.1]} 12. cxd4 {[%clk 0:02:26.3]} 12... Bb7 {[%clk 0:02:51.9]}
13. Nbd2 {[%clk 0:02:23.4]} 13... Rc8 {[%clk 0:02:39.6]} 14. Nf1 {[%clk
0:01:30.6]} 14... Qc7 {[%clk 0:02:32.2]} 15. Bb1 {[%clk 0:01:22.2]} 15... exd4
{[%clk 0:02:07.6]} 16. Nxd4 {[%clk 0:01:18.9]} 16... Rfe8 {[%clk 0:02:02.7]} 17.
Nf5 {[%clk 0:01:13.7]} 17... Bf8 {[%clk 0:02:01.2]} 18. Bg5 {[%clk 0:01:12.6]}
18... Nxe4 {[%clk 0:01:56]} 19. Bxe4 {[%clk 0:01:02.6]} 19... Rxe4 {[%clk
0:01:51.6]} 20. Qh5 {[%clk 0:00:50.3]} 20... Nc4 {[%clk 0:01:25.9]} 21. Rxe4
{[%clk 0:00:30.7]} 21... Bxe4 {[%clk 0:01:26.8]} 22. N1g3 {[%clk 0:00:30.9]}
22... Bb7 {[%clk 0:01:06.9]} 23. Rc1 {[%clk 0:00:30.1]} 23... Qc6 {[%clk
0:01:02.5]} 24. f3 {[%clk 0:00:25.5]} 24... Qb6+ {[%clk 0:00:56.1]} 25. Kh2
{[%clk 0:00:24.2]} 25... Nxb2 {[%clk 0:00:46.2]} 26. Rxc8 {[%clk 0:00:19.1]}
26... Bxc8 {[%clk 0:00:47.1]} 27. Bf6 {[%clk 0:00:09.1]} 27... gxf6 {[%clk
0:00:34.8]} 28. Qg4+ {[%clk 0:00:08.1]} 28... Kh8 {[%clk 0:00:34.7]} 29. Qe4
{[%clk 0:00:06]} 29... Qd8 {[%clk 0:00:20.5]} 30. Qd4 {[%clk 0:00:04.2]} 30...
Nc4 {[%clk 0:00:19.4]} 31. f4 {[%clk 0:00:04.6]} 31... Bg7 {[%clk 0:00:16.1]}
32. Nxg7 {[%clk 0:00:02.6]} 32... Kxg7 {[%clk 0:00:17]} 33. Nh5+ {[%clk
0:00:03.2]} 33... Kf8 {[%clk 0:00:13.8]} 34. Nxf6 {[%clk 0:00:02.7]} 34... Qb6
{[%clk 0:00:10.2]} 0-1